fUSD/lending_fUSD_20251105
["ID","MTS","AMOUNT","RATE_DAILY","PERIOD"]
[393232675,1762361445420,-500.0,0.00017599,2]
[393232676,1762361445429,-500.0,0.00017599,2]
[393232677,1762361445439,-500.0,0.00017599,2]
[393232678,1762361445449,-500.0,0.00017599,2]
[393232679,1762361445459,-500.0,0.00017599,2]
[393232680,1762361445470,-166.66,0.000176,2]
[393232681,1762361445479,-200.0,0.00017618,2]
[393232682,1762361445489,-477.76462643,0.00017627,3]
[393232683,1762361445499,-351.38330453,0.00017629,2]
[393232684,1762361445508,-152.0,0.00017629,2]
[393232685,1762361445518,-183.84178856,0.00017629,2]
[393232686,1762361445527,-152.0,0.00017629,2]
[393232687,1762361445536,-152.0,0.00017629,2]
[393232688,1762361445546,-152.0,0.00017629,2]
[393232689,1762361445555,-826.0,0.00017629,2]
[393232690,1762361445565,-152.0,0.00017629,2]
[393232691,1762361445574,-826.0,0.00017629,2]
[393232692,1762361445584,-152.0,0.00017629,2]
[393232694,1762361445593,-152.0,0.00017629,2]
[393232695,1762361445602,-152.0,0.00017629,2]
[393232696,1762361445611,-826.0,0.00017629,2]
[393232697,1762361445620,-826.0,0.00017629,2]
[393232698,1762361445629,-152.0,0.00017629,2]
[393232699,1762361445653,-826.0,0.00017629,2]
[393232700,1762361445662,-152.0,0.00017629,2]
[393232701,1762361445672,-295.38861651,0.00017629,2]
[393232702,1762361445681,-152.0,0.00017629,2]
[393232703,1762361445690,-273.14633776,0.00017629,2]
[393232704,1762361445700,-1760.0,0.00017641,2]
[393232705,1762361445709,-6874.50742558,0.00017656,2]
[393232706,1762361445720,-165.81245706,0.00017656,2]
[393232707,1762361445729,-490.0,0.00017678,2]
[393232708,1762361445739,-151.0,0.0001768,2]
[393232709,1762361445748,-151.0,0.0001768,2]
[393232710,1762361445758,-153.83494713,0.0001768,2]
[393232711,1762361445768,-153.96997627,0.0001768,2]
[393232712,1762361445777,-826.0,0.0001768,2]
[393232713,1762361445787,-841.91548812,0.0001768,2]
[393232714,1762361445797,-153.0,0.0001768,2]
[393232715,1762361445806,-153.0,0.0001768,2]
[393232716,1762361445815,-153.0,0.0001768,2]
[393232717,1762361445825,-153.0,0.0001768,2]
[393232718,1762361445835,-153.0,0.0001768,2]
[393232719,1762361445844,-153.0,0.0001768,2]
[393232720,1762361445854,-153.0,0.0001768,2]
[393232721,1762361445863,-153.0,0.0001768,2]
[393232722,1762361445873,-153.0,0.0001768,2]
[393232723,1762361445882,-153.0,0.0001768,2]
[393232724,1762361445892,-153.0,0.0001768,2]
[393232725,1762361445902,-153.0,0.0001768,2]
[393232726,1762361445912,-164.9,0.0001768,2]
[393232727,1762361445921,-150.0,0.0001769,2]
[393232728,1762361445931,-150.0,0.0001769,2]
[393232729,1762361445940,-151.92422519,0.0001769,2]
[393232730,1762361445950,-450.0,0.0001769,2]
[393232731,1762361445962,-150.0,0.0001769,2]
[393232732,1762361445971,-200.0,0.0001769,2]
[393232733,1762361445981,-200.0,0.0001769,2]
[393232734,1762361445990,-500.0,0.0001769,2]
[393232735,1762361445999,-500.0,0.0001769,2]
[393232736,1762361446009,-426.0,0.0001769,2]
[393232737,1762361446019,-150.0,0.0001769,2]
[393232738,1762361446028,-500.0,0.0001769,2]
[393232739,1762361446038,-150.0,0.0001769,2]
[393232740,1762361446047,-150.0,0.0001769,2]
[393232741,1762361446057,-500.0,0.0001769,2]
[393232742,1762361446067,-500.0,0.0001769,2]
[393232743,1762361446076,-174.55969354,0.00017699,2]
[393232744,1762361446085,-218.24,0.00017706,2]
[393232745,1762361446095,-268.63021333,0.00017714,2]
[393232746,1762361446104,-773.8,0.00017721,2]
[393232747,1762361446113,-1966.45724909,0.00017722,2]
[393232748,1762361446123,-10121.28,0.00017728,2]
[393232749,1762361446133,-14522.76,0.00017728,2]
[393232750,1762361446142,-9999.99,0.00017728,2]
[393232751,1762361446152,-21303.82,0.00017728,2]
[393232752,1762361446161,-191.71435199,0.00017743,2]
[393232753,1762361446172,-161.571118,0.00017777,2]
[393232754,1762361446186,-265.878131,0.00017777,2]
[393232755,1762361446195,-6874.50742558,0.00017778,2]
[393232756,1762361446204,-165.81245706,0.00017778,2]
[393232757,1762361446215,-151.0,0.00017778,2]
[393232758,1762361446226,-3422.0,0.0001779,2]
[393232759,1762361446236,-1315.0,0.0001779,2]
[393232760,1762361446246,-574.0,0.0001779,2]
[393232761,1762361446256,-607.0,0.0001779,2]
[393232762,1762361446265,-1595.0,0.0001779,2]
[393232763,1762361446275,-820.0,0.0001779,2]
[393232764,1762361446284,-1272.0,0.0001779,2]
[393232765,1762361446293,-812.0,0.0001779,2]
[393232766,1762361446303,-2141.0,0.0001779,2]
[393232767,1762361446313,-6656.0,0.0001779,2]
[393232768,1762361446323,-559.0,0.0001779,2]
[393232769,1762361446332,-6473.0,0.0001779,2]
[393232770,1762361446341,-151.0,0.0001779,2]
[393232771,1762361446351,-151.0,0.0001779,2]
[393232772,1762361446361,-593.0,0.0001779,2]
[393232773,1762361446371,-566.250768,0.0001779,2]
[393232774,1762361446381,-963.0,0.000178,2]
[393232775,1762361446390,-302.0,0.000178,2]
[393232776,1762361446399,-905.0,0.000178,2]
[393232777,1762361446409,-166.787736,0.000178,2]
[393232778,1762361446418,-161.805327,0.000178,2]
[393232779,1762361446428,-1000.0,0.00017821,2]
[393232781,1762361446437,-1000.0,0.00017821,2]
[393232782,1762361446446,-809.91152023,0.00017821,2]
[393232783,1762361446455,-338.72788329,0.00017821,2]
[393232784,1762361446466,-1000.0,0.00017821,2]
[393232785,1762361446475,-1000.0,0.00017821,2]
[393232786,1762361446485,-150.0,0.00017827,2]
[393232787,1762361446494,-150.0,0.00017827,2]
[393232788,1762361446504,-500.0,0.00017827,2]
[393232789,1762361446513,-500.0,0.00017827,2]
[393232790,1762361446522,-426.0,0.00017827,2]
[393232791,1762361446532,-150.0,0.00017827,2]
[393232793,1762361446541,-212.59995806,0.00017827,2]
[393232794,1762361446551,-150.0,0.00017827,2]
[393232795,1762361446560,-181.50662984,0.00017827,2]
[393232796,1762361446570,-500.0,0.00017827,2]
[393232797,1762361446580,-500.0,0.00017827,2]
[393232798,1762361446590,-490.0,0.00017845,2]
[393232799,1762361446600,-243.7,0.00017848,2]
[393232800,1762361446610,-162.32794439,0.00017861,2]
[393232801,1762361446620,-174.55969354,0.00017863,2]
[393232802,1762361446630,-2500.0,0.00017882,3]
[393232803,1762361446640,-704.0,0.0001789,2]
[393232804,1762361446650,-2500.0,0.00017891,3]
[393232805,1762361446660,-490.0,0.00017894,2]
[393232806,1762361446669,-500.0,0.00017899,2]
[393232807,1762361446678,-500.0,0.00017899,2]
[393232808,1762361446688,-2500.0,0.000179,3]
[393232809,1762361446698,-2500.0,0.000179,3]
[393232810,1762361446707,-1205.3531384,0.000179,3]
[393232811,1762361446717,-2500.0,0.000179,3]
[393232812,1762361446726,-178.86631507,0.000179,2]
[393232813,1762361446735,-191.71435199,0.000179,2]
[393232814,1762361446745,-356.99118559,0.000179,2]
[393232815,1762361446754,-2500.0,0.000179,3]
[393232816,1762361446763,-6874.50742558,0.000179,2]
[393232817,1762361446773,-2390.84317319,0.000179,2]
[393232818,1762361446782,-159.75277179,0.000179,2]
[393232819,1762361446791,-1218.97516657,0.000179,3]
[393232820,1762361446800,-3472.93082934,0.000179,2]
[393232821,1762361446811,-165.81245706,0.000179,2]
[393232822,1762361446820,-250.0,0.0001792,2]
[393232823,1762361446829,-150.0,0.0001792,2]
[393232824,1762361446839,-209.0,0.0001792,2]
[393232825,1762361446848,-206.106,0.0001792,2]
[393232826,1762361446857,-250.0,0.0001792,2]
[393232827,1762361446868,-215.691,0.0001792,2]
[393232828,1762361446876,-152.461,0.0001792,2]
[393232829,1762361446886,-250.0,0.0001792,2]
[393232830,1762361446895,-261.388,0.0001792,2]
[393232831,1762361446905,-188.836,0.0001792,2]
[393232832,1762361446915,-162.063,0.0001792,2]
[393232833,1762361446924,-209.805,0.0001792,2]
[393232834,1762361446933,-250.0,0.0001792,2]
[393232835,1762361446943,-220.533,0.0001792,2]
[393232836,1762361446954,-527.28,0.00017941,2]
[393232837,1762361446963,-241.58927028,0.00017964,2]
[393232838,1762361446974,-200.0,0.00017964,2]
[393232839,1762361446983,-500.0,0.00017964,2]
[393232840,1762361446993,-408.96050936,0.00017964,2]
[393232841,1762361447002,-426.0,0.00017964,2]
[393232842,1762361447011,-150.0,0.00017964,2]
[393232843,1762361447146,-224.96766427,0.00017964,2]
[393232844,1762361447174,-500.0,0.00017964,2]
[393232845,1762361447185,-500.0,0.00017964,2]
[393232846,1762361447198,-177.0,0.00017973,2]
[393232847,1762361447208,-500.0,0.00017973,2]
[393232848,1762361447218,-160.66945585,0.00017973,2]
[393232849,1762361447228,-500.0,0.00017973,2]
[393232850,1762361447239,-500.0,0.00017973,2]
[393232851,1762361447248,-500.0,0.00017973,2]
[393232852,1762361447260,-503.18778787,0.00017973,2]
[393232853,1762361447271,-560.97280974,0.00017973,2]
[393232854,1762361447281,-521.19557885,0.00017973,2]
[393232855,1762361447291,-161.12615049,0.00017973,2]
[393232856,1762361447301,-425.20156148,0.00017973,2]
[393232857,1762361447311,-500.0,0.00017973,2]
[393232858,1762361447320,-500.0,0.00017973,2]
[393232859,1762361447330,-500.37682424,0.00017973,2]
[393232860,1762361447340,-501.57121462,0.00017973,2]
[393232861,1762361447349,-504.4329663,0.00017973,2]
[393232862,1762361447360,-500.0,0.00017973,2]
[393232863,1762361447370,-500.0,0.00017973,2]
[393232864,1762361447379,-500.0,0.00017973,2]
[393232865,1762361447389,-505.6429946,0.00017973,2]
[393232866,1762361447399,-330.77503561,0.00017973,2]
[393232867,1762361447411,-501.78189786,0.00017973,2]
[393232868,1762361447421,-159.95045281,0.00017973,2]
[393232869,1762361447430,-165.72593584,0.00017973,2]
[393232870,1762361447440,-229.67599749,0.00017973,2]
[393232871,1762361447449,-500.0,0.00017973,2]
[393232872,1762361447458,-500.0,0.00017973,2]
[393232873,1762361447468,-500.0,0.00017973,2]
[393232874,1762361447478,-500.0,0.00017973,2]
[393232875,1762361447487,-500.80603868,0.00017973,2]
[393232876,1762361447496,-500.0,0.00017973,2]
[393232877,1762361447506,-155.18353454,0.00017973,2]
[393232878,1762361447515,-500.0,0.00017973,2]
[393232879,1762361447524,-500.0,0.00017973,2]
[393232880,1762361447534,-513.05694483,0.00017973,2]
[393232881,1762361447543,-500.0,0.00017973,2]
[393232882,1762361447553,-500.0,0.00017973,2]
[393232883,1762361447563,-500.0,0.00017973,2]
[393232884,1762361447572,-500.0,0.00017973,2]
[393232885,1762361447581,-501.13924348,0.00017973,2]
[393232886,1762361447590,-500.0,0.00017973,2]
[393232887,1762361447601,-500.0,0.00017973,2]
[393232888,1762361447611,-167.31403228,0.00017973,2]
[393232889,1762361447621,-500.44686822,0.00017973,2]
[393232890,1762361447631,-280.24945636,0.00017973,2]
[393232891,1762361447640,-321.53200453,0.00017973,2]
[393232892,1762361447650,-500.0,0.00017973,2]
[393232893,1762361447659,-500.0,0.00017973,2]
[393232894,1762361447669,-500.0,0.00017973,2]
[393232895,1762361447678,-150.0,0.00017979,2]
[393232896,1762361447687,-435.9,0.00017979,2]
[393232897,1762361447697,-633.34107143,0.0001799,2]
[393232898,1762361447706,-633.34107143,0.0001799,2]
[393232899,1762361447716,-773.8,0.00017995,2]
[393232900,1762361447725,-169.01,0.00017995,2]
[393232901,1762361447737,-169.01,0.00017995,2]
[393232902,1762361447746,-169.01,0.00017995,2]
[393232903,1762361447755,-169.01,0.00017995,2]
[393232904,1762361447765,-169.01,0.00017995,2]
[393232905,1762361447775,-338.02,0.00017995,2]
[393232906,1762361447784,-169.01,0.00017995,2]
[393232907,1762361447793,-169.01,0.00017995,2]
[393232908,1762361447802,-169.01,0.00017995,2]
[393232909,1762361447811,-338.02,0.00017995,2]
[393232910,1762361447820,-338.02,0.00017995,2]
[393232911,1762361447829,-169.01,0.00017995,2]
[393232912,1762361447838,-169.01,0.00017995,2]
[393232913,1762361447847,-169.01,0.00017995,2]
[393232914,1762361447856,-190.47,0.00017995,2]
[393232915,1762361447866,-169.01,0.00017995,2]
[393232916,1762361447875,-169.01,0.00017995,2]
[393232917,1762361447884,-169.01,0.00017995,2]
[393232918,1762361447894,-169.01,0.00017995,2]
[393232919,1762361447903,-169.01,0.00017995,2]
[393232920,1762361447912,-518.2032606,0.00017999,2]
[393232921,1762361447922,-500.0,0.00017999,2]
[393232922,1762361447931,-500.0,0.00017999,2]
[393232923,1762361447940,-500.0,0.00017999,2]
[393232924,1762361447950,-500.0,0.00017999,2]
[393232925,1762361447960,-500.0,0.00017999,2]
[393232926,1762361447969,-500.0,0.00017999,2]
[393232927,1762361447979,-500.0,0.00017999,2]
[393232928,1762361447988,-305.66546497,0.00017999,2]
[393232929,1762361447998,-1000.0,0.00017999,2]
[393232930,1762361448008,-527.28,0.00017999,2]
[393232931,1762361448017,-527.28,0.00017999,2]
[393232932,1762361448026,-527.28,0.00017999,2]
[393232933,1762361448036,-527.28,0.00017999,2]
[393232934,1762361448045,-527.28,0.00017999,2]
[393232935,1762361448054,-527.28,0.00017999,2]
[393232936,1762361448063,-527.28,0.00017999,2]
[393232937,1762361448072,-527.28,0.00017999,2]
[393232938,1762361448081,-527.28,0.00017999,2]
[393232939,1762361448090,-527.28,0.00017999,2]
[393232940,1762361448099,-527.28,0.00017999,2]
[393232941,1762361448108,-527.28,0.00017999,2]
[393232942,1762361448118,-527.28,0.00017999,2]
[393232943,1762361448127,-527.44666509,0.00017999,2]
[393232944,1762361448138,-450.0,0.00017999,5]
[393232945,1762361448147,-615.61384084,0.00017999,2]
[393232946,1762361448156,-500.0,0.00017999,2]
[393232947,1762361448169,-500.0,0.00017999,2]
[393232948,1762361448179,-500.0,0.00017999,2]
[393232949,1762361448192,-300.0,0.00017999,2]
[393232950,1762361448202,-300.0,0.00017999,2]
[393232951,1762361448211,-300.0,0.00017999,2]
[393232952,1762361448222,-666.0,0.00017999,2]
[393232953,1762361448236,-2845612.35562701,0.00018,2]
[393232954,1762361448245,-883.81493502,0.00018,2]
[393232955,1762361448255,-16199.25564434,0.00018,2]
[393232956,1762361448265,-1598136.87240551,0.00018,2]
[393232957,1762361448580,-758.2,0.00018,2]
[393232958,1762361448614,-282.42479877,0.000173,2]
[393232959,1762361448625,-283.82596923,0.000173,2]
[393232960,1762361448636,-4679.22403077,0.00018,2]
[393232961,1762361448656,-320.78000004,0.00018,2]
[393232962,1762361448998,-395.07879864,0.0001689,2]
[393232972,1762361486203,500.0,0.00016789,2]
[393232973,1762361492190,1979.12029858,0.00016795,2]
[393232974,1762361492218,10000.01,0.00016795,2]
[393232975,1762361492243,10000.01,0.00016795,2]
[393232976,1762361492270,10000.01,0.00016795,2]
[393232977,1762361492297,1265.58190142,0.00016795,2]
[393232984,1762361519281,8734.42809858,0.00016795,2]
[393232985,1762361519308,10000.01,0.00016795,2]
[393232986,1762361519333,10000.01,0.00016795,2]
[393232987,1762361519358,10000.01,0.00016795,2]
[393232988,1762361519384,10000.01,0.00016795,2]
[393232989,1762361519409,10000.01,0.00016795,2]
[393232990,1762361519434,10000.01,0.00016795,2]
[393232991,1762361519458,10000.01,0.00016795,2]
[393232992,1762361519484,10000.01,0.00016795,2]
[393232993,1762361519508,10000.01,0.00016795,2]
[393232994,1762361520149,-573.97184463,0.00016795,2]
[393233037,1762361607304,176.37,0.00016785,3]
[393233054,1762361656682,166.26921146,0.00016695,2]
[393233055,1762361662589,5215.7884,0.00016695,2]
[393233060,1762361692133,166.66,0.00016499,2]
[393233061,1762361707915,250.0,0.000167,2]
[393233177,1762361779798,150.0,0.00016598,2]
[393233182,1762361799465,-1200.0,0.00016792,2]
[393233183,1762361799504,-300.0,0.00016792,2]
[393233184,1762361799544,-300.0,0.00016792,2]
[393233185,1762361799582,-1622.7519,0.00016792,2]
[393233186,1762361799621,-552.16510927,0.00016792,2]
[393233187,1762361799663,-702.90502032,0.00016792,2]
[393233188,1762361799930,-702.90502032,0.00016792,2]
[393233189,1762361799973,-702.90502032,0.00016792,2]
[393233190,1762361800015,-702.90502032,0.00016792,2]
[393233191,1762361800057,-702.90502032,0.00016792,2]
[393233192,1762361800099,-702.90502032,0.00016792,2]
[393233193,1762361800140,-702.90502032,0.00016792,2]
[393233194,1762361800182,-702.90502032,0.00016792,2]
[393233195,1762361800223,-702.90502032,0.00016792,2]
[393233196,1762361800265,-702.90502032,0.00016792,2]
[393233197,1762361800306,-702.90502032,0.00016792,2]
[393233198,1762361800349,-702.90502032,0.00016792,2]
[393233199,1762361800391,-702.90502032,0.00016792,2]
[393233200,1762361800433,-702.90502032,0.00016792,2]
[393233201,1762361800477,-702.90502032,0.00016792,2]
[393233202,1762361800520,-702.90502032,0.00016792,2]
[393233203,1762361800562,-702.90502032,0.00016792,2]
[393233204,1762361800604,-702.90502032,0.00016792,2]
[393233205,1762361800649,-702.90502032,0.00016792,2]
[393233206,1762361800693,-702.90502032,0.00016792,2]
[393233207,1762361800734,-702.90502032,0.00016792,2]
[393233208,1762361800777,-702.90502032,0.00016792,2]
[393233209,1762361800822,-702.90502032,0.00016792,2]
[393233210,1762361800864,-702.90502032,0.00016792,2]
[393233211,1762361800905,-702.90502032,0.00016792,2]
[393233212,1762361800948,-702.90502032,0.00016792,2]
[393233213,1762361800990,-702.90502032,0.00016792,2]
[393233214,1762361801036,-702.90502032,0.00016792,2]
[393233215,1762361801078,-702.90502032,0.00016792,2]
[393233216,1762361801120,-702.90502032,0.00016792,2]
[393233217,1762361801161,-702.90502032,0.00016792,2]
[393233218,1762361801203,-702.90502032,0.00016792,2]
[393233219,1762361801246,-702.90502032,0.00016792,2]
[393233220,1762361801288,-702.90502032,0.00016792,2]
[393233221,1762361801334,-702.90502032,0.00016792,2]
[393233222,1762361801380,-702.90502032,0.00016792,2]
[393233223,1762361801422,-702.90502032,0.00016792,2]
[393233224,1762361801466,-702.90502032,0.00016792,2]
[393233225,1762361801669,-702.90502032,0.00016792,2]
[393233226,1762361801718,-702.90502032,0.00016792,2]
[393233227,1762361801765,-702.90502032,0.00016792,2]
[393233228,1762361801809,-702.90502032,0.00016792,2]
[393233229,1762361801850,-702.90502032,0.00016792,2]
[393233230,1762361801892,-702.90502032,0.00016792,2]
[393233231,1762361801934,-702.90502032,0.00016792,2]
[393233232,1762361801976,-702.90502032,0.00016792,2]
[393233233,1762361802019,-702.90502032,0.00016792,2]
[393233234,1762361802061,-702.90502032,0.00016792,2]
[393233235,1762361802102,-702.90502032,0.00016792,2]
[393233236,1762361802144,-702.90502032,0.00016792,2]
[393233237,1762361802186,-702.90502032,0.00016792,2]
[393233238,1762361802230,-702.90502032,0.00016792,2]
[393233239,1762361802272,-702.90502032,0.00016792,2]
[393233240,1762361802316,-702.90502032,0.00016792,2]
[393233241,1762361802358,-702.90502032,0.00016792,2]
[393233242,1762361802399,-702.90502032,0.00016792,2]
[393233243,1762361802439,-1200.0,0.00016793,2]
[393233244,1762361802477,-150.0,0.00016793,2]
[393233245,1762361802517,-257.94,0.00016794,2]
[393233246,1762361802556,-613.94892354,0.00016794,2]
[393233247,1762361802596,-320691.51005679,0.00016795,2]
[393233248,1762361802635,-1000.0,0.00016795,2]
[393233249,1762361802673,-2500.0,0.00016795,2]
[393233255,1762361809090,411.67747315,0.00016794,2]
[393233256,1762361811727,500.0,0.00016792,2]
[393233257,1762361811772,445.75541085,0.00016792,2]
[393233278,1762361849229,1000.0,0.00016695,2]
[393233279,1762361850196,500.0,0.00017,7]
[393233280,1762361851515,500.0,0.00017,7]
[393233281,1762361852280,500.0,0.00017,7]
[393233282,1762361853137,500.0,0.00017,7]
[393233283,1762361853914,500.0,0.00017,7]
[393233284,1762361854666,500.0,0.00017,7]
[393233285,1762361858508,9000.01,0.00016695,2]
[393233286,1762361858533,10000.01,0.00016695,2]
[393233287,1762361858558,10000.01,0.00016695,2]
[393233288,1762361858598,10000.01,0.00016695,2]
[393233289,1762361858627,10000.01,0.00016695,2]
[393233290,1762361858654,10000.01,0.00016695,2]
[393233291,1762361858681,10000.01,0.00016695,2]
[393233292,1762361858710,10000.01,0.00016695,2]
[393233293,1762361858735,10000.01,0.00016695,2]
[393233295,1762361858762,10000.01,0.00016695,2]
[393233297,1762361859830,-380.61074782,0.00016695,2]
[393233298,1762361862667,-225.40058273,0.00016695,2]
[393233299,1762361865849,-575.6459569,0.00016695,2]
[393233302,1762361881464,-300.0,0.00016694,2]
[393233303,1762361881582,-453.90378393,0.00016695,2]
[393233304,1762361881677,-3644.68274661,0.00016695,2]
[393233305,1762361881766,-10000.01,0.00016695,2]
[393233306,1762361881878,-10000.01,0.00016695,2]
[393233307,1762361882005,-10000.01,0.00016695,2]
[393233308,1762361882126,-10000.01,0.00016695,2]
[393233310,1762361883797,-153.73396483,0.00016685,2]
[393233311,1762361884148,-8.48583375,0.00016685,2]
[393233312,1762361884185,-9983.0383325,0.00016695,2]
[393233313,1762361884259,-10000.01,0.00016695,2]
[393233314,1762361884374,-10000.01,0.00016695,2]
[393233315,1762361885308,-365.3,0.00016695,2]
[393233316,1762361887336,-300.0,0.00016695,2]
[393233317,1762361888789,-195.0,0.00016695,2]
[393233318,1762361890826,-209.07560919,0.00016695,2]
[393233319,1762361893079,-234.19585911,0.00016695,2]
[393233320,1762361893256,-10000.01,0.00016695,2]
[393233321,1762361894564,-208.06507426,0.00016695,2]
[393233322,1762361899357,-10000.01,0.00016695,2]
[393233324,1762361905576,-10000.01,0.00016695,2]
[393233325,1762361906234,-166.66,0.00016695,2]
[393233326,1762361909103,-166.66,0.00016695,2]
[393233327,1762361911637,-10000.01,0.00016695,2]
[393233328,1762361911857,-237.20277449,0.00016695,2]
[393233329,1762361913872,-200.0,0.00016695,2]
[393233330,1762361916332,-402.83319254,0.00016389,2]
[393233331,1762361918016,-835.09680746,0.00016389,2]
[393233332,1762361918050,-500.0,0.00016694,2]
[393233333,1762361918081,-500.0,0.00016694,2]
[393233334,1762361918111,-500.0,0.00016694,2]
[393233335,1762361918141,-500.0,0.00016694,2]
[393233336,1762361918171,-500.0,0.00016694,2]
[393233337,1762361918202,-500.0,0.00016694,2]
[393233338,1762361918235,-500.0,0.00016694,2]
[393233339,1762361918267,-500.0,0.00016694,2]
[393233340,1762361918301,-157.64270237,0.00016694,2]
[393233341,1762361918448,-329.81638508,0.00016694,2]
[393233342,1762361920956,-4557.45099105,0.00016595,2]
[393233343,1762361921559,-12.54091255,0.00016694,2]
[393233344,1762361921584,-224.74078262,0.00016694,2]
[393233345,1762361924552,-275.25921738,0.00016694,2]
[393233346,1762361924581,-315.65797601,0.00016694,2]
[393233349,1762361941537,-184.34202399,0.00016694,2]
[393233350,1762361941562,-36.20084149,0.00016694,2]
[393233351,1762361943681,-165.00327818,0.00016694,2]
[393233352,1762361945299,-298.79588033,0.00016694,2]
[393233353,1762361945330,-52.20411967,0.00016694,2]
[393233354,1762361947402,-156.315875,0.00016694,2]
[393233355,1762361949916,-196.5751,0.00016694,2]
[393233356,1762361951470,-94.90490533,0.00016694,2]
[393233357,1762361951495,-219.31624286,0.00016694,2]
[393233358,1762361954736,-399.33566663,0.00016688,2]
[393233359,1762361971542,-245.39737671,0.00016688,2]
[393233360,1762361973620,-414.96521464,0.00016688,2]
[393233361,1762361976363,-211.88014745,0.00016688,2]
[393233362,1762361978558,200.92506264,0.00016641,2]
[393233363,1762361979086,-382.91066903,0.00016688,2]
[393233364,1762361981261,-180.86365927,0.00016688,2]
[393233365,1762361982794,-310.396238,0.00016688,2]
[393233366,1762361985666,-178.8903808,0.00016688,2]
[393233367,1762361997412,-409.40237027,0.00016688,2]
[393233368,1762361997468,-8980.28019682,0.00016688,2]
[393233369,1762361997661,-10000.01,0.00016688,2]
[393233370,1762361998477,-250.0,0.00016688,2]
[393233371,1762361999995,243.97,8.349e-05,2]
[393233372,1762362000225,243.97,8.771e-05,2]
[393233373,1762362000499,243.97,9.193e-05,2]
[393233374,1762362000702,243.97,9.616e-05,2]
[393233375,1762362000935,243.97,0.00010038,2]
[393233376,1762362001165,243.97,0.0001046,2]
[393233377,1762362001368,243.97,0.00010882,2]
[393233378,1762362001598,243.97,0.00011304,2]
[393233379,1762362001848,243.97,0.00011727,2]
[393233380,1762362002075,243.97,0.00012149,2]
[393233381,1762362002310,243.97,0.00012571,2]
[393233382,1762362002531,243.97,0.00012993,2]
[393233383,1762362002755,243.97,0.00013415,2]
[393233384,1762362002861,-156.31587506,0.00016687,2]
[393233385,1762362003007,243.97,0.00013838,2]
[393233386,1762362003242,243.97,0.0001426,2]
[393233387,1762362003489,243.97,0.00014682,2]
[393233388,1762362003937,243.97,0.00015104,2]
[393233389,1762362004041,243.97,0.00015526,2]
[393233390,1762362004276,243.97,0.00015949,2]
[393233391,1762362005491,-165.0032782,0.00016371,2]
[393233392,1762362006367,-78.9667218,0.00016371,2]
[393233393,1762362006397,-1043.68412494,0.00016687,2]
[393233394,1762362006426,-300.0,0.00016687,2]
[393233395,1762362006739,-6422.79830652,0.00016688,2]
[393233396,1762362006783,-10000.01,0.00016688,2]
[393233397,1762362007578,-173.36051182,0.00016688,2]
[393233398,1762362009017,-280.20155479,0.00016688,2]
[393233399,1762362011584,-294.92625651,0.00016685,2]
[393233400,1762362015370,-260.17323989,0.00016685,2]
[393233401,1762362019874,-246.59656865,0.00016688,2]
[393233402,1762362021376,-215.12877233,0.00016688,2]
[393233403,1762362022966,-238.44145489,0.00016688,2]
[393233404,1762362026112,-222.08013487,0.00016688,2]
[393233405,1762362031356,-262.21088851,0.00016688,2]
[393233406,1762362032814,-253.92642396,0.00016688,2]